fUSD/lending_fUSD_20260406
["ID","MTS","AMOUNT","RATE_DAILY","PERIOD"]
[419927004,1775512250964,-389.20297383,0.000159,2]
[419927005,1775512250974,-21290.97079583,0.000159,3]
[419927006,1775512250983,-389.20297383,0.000159,2]
[419927007,1775512250992,-389.20297383,0.000159,2]
[419927008,1775512251002,-389.20297383,0.000159,2]
[419927009,1775512251011,-389.20297383,0.000159,2]
[419927010,1775512251021,-784.25699556,0.000159,2]
[419927011,1775512251031,-389.20297383,0.000159,2]
[419927012,1775512251040,-389.20297383,0.000159,2]
[419927013,1775512251050,-389.20297383,0.000159,2]
[419927014,1775512251059,-389.20297383,0.000159,2]
[419927015,1775512251069,-389.20297383,0.000159,2]
[419927016,1775512251078,-389.20297383,0.000159,2]
[419927017,1775512251088,-389.20297383,0.000159,2]
[419927018,1775512251097,-389.20297383,0.000159,2]
[419927019,1775512251107,-389.20297383,0.000159,2]
[419927020,1775512251116,-389.20297383,0.000159,2]
[419927021,1775512251126,-389.20297383,0.000159,2]
[419927022,1775512251136,-389.20297383,0.000159,2]
[419927023,1775512251145,-389.20297383,0.000159,2]
[419927024,1775512251155,-389.20297383,0.000159,2]
[419927025,1775512251164,-2863.19157105,0.000159,2]
[419927026,1775512251173,-6260.93307362,0.000159,2]
[419927027,1775512251183,-27331.93099935,0.000159,2]
[419927028,1775512251192,-26653.40585005,0.000159,2]
[419927029,1775512251202,-3931.0,0.000159,5]
[419927030,1775512251212,-2000.0,0.000159,2]
[419927031,1775512251222,-350.0,0.00015902,3]
[419927032,1775512251231,-306.0,0.00015904,2]
[419927033,1775512251241,-368.0,0.00015905,2]
[419927034,1775512251250,-150.0,0.00015907,2]
[419927035,1775512251260,-250.0,0.0001594,2]
[419927036,1775512251270,-306.0,0.00015941,2]
[419927037,1775512251279,-1000.0,0.00015947,2]
[419927038,1775512251288,-193.62,0.0001595,2]
[419927039,1775512251298,-1084.35002387,0.00015953,5]
[419927040,1775512251308,-500.0,0.00015953,2]
[419927041,1775512251318,-500.0,0.00015953,2]
[419927042,1775512251328,-500.0,0.00015953,2]
[419927043,1775512251337,-500.0,0.00015953,2]
[419927044,1775512251347,-500.0,0.00015953,2]
[419927045,1775512251356,-500.0,0.00015953,2]
[419927046,1775512251365,-500.0,0.00015953,2]
[419927047,1775512251374,-500.0,0.00015953,2]
[419927048,1775512251383,-500.0,0.00015953,2]
[419927049,1775512251392,-500.0,0.00015953,2]
[419927050,1775512251402,-297.62,0.00015953,2]
[419927051,1775512251411,-500.0,0.00015953,2]
[419927052,1775512251421,-500.0,0.00015953,2]
[419927053,1775512251430,-191.4,0.00015953,2]
[419927054,1775512251439,-4236.554878,0.00015954,2]
[419927055,1775512251449,-706318.4162277,0.00015954,2]
[419927056,1775512251459,-3585.8071625,0.00015954,2]
[419927057,1775512251468,-932.9331993,0.00015954,2]
[419927058,1775512251478,-151.0,0.00015954,2]
[419927059,1775512251487,-151.0,0.00015954,2]
[419927060,1775512251497,-151.0,0.00015954,2]
[419927061,1775512251506,-151.0,0.00015954,2]
[419927062,1775512251515,-408.409222,0.00015954,2]
[419927063,1775512251525,-248.721184,0.00015954,2]
[419927064,1775512251535,-151.0,0.00015954,2]
[419927065,1775512251544,-151.0,0.00015954,2]
[419927066,1775512251553,-408.409222,0.00015954,2]
[419927067,1775512251563,-151.0,0.00015954,2]
[419927068,1775512251572,-408.409222,0.00015954,2]
[419927069,1775512251581,-1324.90173,0.00015954,2]
[419927070,1775512251590,-408.409222,0.00015954,2]
[419927071,1775512251599,-1324.90173,0.00015954,2]
[419927072,1775512251608,-310.094312,0.00015954,2]
[419927073,1775512251618,-1324.90173,0.00015954,2]
[419927074,1775512251627,-151.0,0.00015954,2]
[419927075,1775512251637,-1324.90173,0.00015954,2]
[419927076,1775512251646,-151.0,0.00015954,2]
[419927077,1775512251655,-151.0,0.00015954,2]
[419927078,1775512251664,-310.094312,0.00015954,2]
[419927079,1775512251674,-310.094312,0.00015954,2]
[419927080,1775512251683,-310.094312,0.00015954,2]
[419927081,1775512251692,-286.269994,0.00015954,2]
[419927082,1775512251702,-286.269994,0.00015954,2]
[419927083,1775512251711,-221.193058,0.00015954,2]
[419927084,1775512251720,-286.269994,0.00015954,2]
[419927085,1775512251730,-221.193058,0.00015954,2]
[419927086,1775512251739,-1352.593209,0.00015954,2]
[419927087,1775512251749,-286.269994,0.00015954,2]
[419927088,1775512251758,-221.193058,0.00015954,2]
[419927089,1775512251767,-1352.593209,0.00015954,2]
[419927090,1775512251776,-221.193058,0.00015954,2]
[419927091,1775512251786,-1352.593209,0.00015954,2]
[419927092,1775512251795,-1352.593209,0.00015954,2]
[419927093,1775512251805,-232.102072,0.00015954,2]
[419927094,1775512251814,-232.102072,0.00015954,2]
[419927095,1775512251823,-232.102072,0.00015954,2]
[419927096,1775512251833,-1715.941805,0.00015954,2]
[419927097,1775512251842,-151.0,0.00015954,2]
[419927098,1775512251852,-232.102072,0.00015954,2]
[419927099,1775512251861,-1715.941805,0.00015954,2]
[419927100,1775512251870,-151.0,0.00015954,2]
[419927101,1775512251879,-1550.160643,0.00015954,2]
[419927102,1775512251888,-1715.941805,0.00015954,2]
[419927103,1775512251897,-151.0,0.00015954,2]
[419927104,1775512251907,-151.0,0.00015954,2]
[419927105,1775512251916,-151.0,0.00015954,2]
[419927106,1775512251925,-454.96662,0.00015954,2]
[419927107,1775512251935,-1550.160643,0.00015954,2]
[419927108,1775512251944,-151.0,0.00015954,2]
[419927109,1775512251954,-1715.941805,0.00015954,2]
[419927110,1775512251963,-151.0,0.00015954,2]
[419927111,1775512251973,-151.0,0.00015954,2]
[419927112,1775512251982,-249.840512,0.00015954,2]
[419927113,1775512251992,-454.96662,0.00015954,2]
[419927114,1775512252001,-1550.160643,0.00015954,2]
[419927115,1775512252011,-151.0,0.00015954,2]
[419927116,1775512252021,-1550.160643,0.00015954,2]
[419927117,1775512252030,-454.96662,0.00015954,2]
[419927118,1775512252039,-151.0,0.00015954,2]
[419927119,1775512252049,-232.534013,0.00015954,2]
[419927120,1775512252058,-454.96662,0.00015954,2]
[419927121,1775512252067,-151.0,0.00015954,2]
[419927122,1775512252077,-232.534013,0.00015954,2]
[419927123,1775512252086,-151.0,0.00015954,2]
[419927124,1775512252095,-232.534013,0.00015954,2]
[419927125,1775512252104,-151.0,0.00015954,2]
[419927126,1775512252114,-232.534013,0.00015954,2]
[419927127,1775512252123,-545.651646,0.00015954,2]
[419927128,1775512252520,-151.0,0.00015954,2]
[419927129,1775512252530,-151.0,0.00015954,2]
[419927130,1775512252539,-151.0,0.00015954,2]
[419927131,1775512252549,-151.0,0.00015954,2]
[419927132,1775512252558,-151.0,0.00015954,2]
[419927133,1775512252567,-192.312443,0.00015954,2]
[419927134,1775512252576,-165.831226,0.00015954,2]
[419927135,1775512252585,-585.190594,0.00015954,2]
[419927136,1775512252595,-545.651646,0.00015954,2]
[419927137,1775512252603,-585.190594,0.00015954,2]
[419927138,1775512252613,-151.0,0.00015954,2]
[419927139,1775512252622,-545.651646,0.00015954,2]
[419927140,1775512252632,-585.190594,0.00015954,2]
[419927141,1775512252641,-151.0,0.00015954,2]
[419927142,1775512252651,-545.651646,0.00015954,2]
[419927143,1775512252660,-585.190594,0.00015954,2]
[419927144,1775512252670,-151.0,0.00015954,2]
[419927145,1775512252679,-151.0,0.00015954,2]
[419927146,1775512252689,-151.0,0.00015954,2]
[419927147,1775512252698,-976.331368,0.00015954,2]
[419927148,1775512252707,-976.331368,0.00015954,2]
[419927149,1775512252716,-234.889848,0.00015954,2]
[419927150,1775512252726,-254.207423,0.00015954,2]
[419927151,1775512252735,-976.331368,0.00015954,2]
[419927152,1775512252745,-234.889848,0.00015954,2]
[419927153,1775512252754,-254.207423,0.00015954,2]
[419927154,1775512252763,-976.331368,0.00015954,2]
[419927155,1775512252772,-234.889848,0.00015954,2]
[419927156,1775512252782,-254.207423,0.00015954,2]
[419927157,1775512252791,-376.495085,0.00015954,2]
[419927158,1775512252800,-234.889848,0.00015954,2]
[419927159,1775512252809,-254.207423,0.00015954,2]
[419927160,1775512252818,-376.495085,0.00015954,2]
[419927161,1775512252828,-305.126816,0.00015954,2]
[419927162,1775512252837,-376.495085,0.00015954,2]
[419927163,1775512252847,-366.764517,0.00015954,2]
[419927164,1775512252856,-151.0,0.00015954,2]
[419927165,1775512252865,-305.126816,0.00015954,2]
[419927166,1775512252874,-376.495085,0.00015954,2]
[419927167,1775512252883,-366.764517,0.00015954,2]
[419927168,1775512252892,-151.0,0.00015954,2]
[419927169,1775512252901,-305.126816,0.00015954,2]
[419927170,1775512252911,-366.764517,0.00015954,2]
[419927171,1775512252920,-151.0,0.00015954,2]
[419927172,1775512252930,-305.126816,0.00015954,2]
[419927173,1775512252939,-366.764517,0.00015954,2]
[419927174,1775512252948,-151.0,0.00015954,2]
[419927175,1775512252957,-261.551929,0.00015954,2]
[419927176,1775512252967,-261.551929,0.00015954,2]
[419927177,1775512252976,-151.0,0.00015954,2]
[419927178,1775512252985,-2515.401827,0.00015954,2]
[419927179,1775512252995,-280.584218,0.00015954,2]
[419927180,1775512253004,-154.295204,0.00015954,2]
[419927181,1775512253013,-2515.401827,0.00015954,2]
[419927182,1775512253022,-280.584218,0.00015954,2]
[419927183,1775512253031,-2515.401827,0.00015954,2]
[419927184,1775512253040,-280.584218,0.00015954,2]
[419927185,1775512253050,-151.0,0.00015954,2]
[419927186,1775512253059,-2515.401827,0.00015954,2]
[419927187,1775512253069,-280.584218,0.00015954,2]
[419927188,1775512253078,-766.93164,0.00015954,2]
[419927189,1775512253087,-436.880734,0.00015954,2]
[419927190,1775512253097,-766.93164,0.00015954,2]
[419927191,1775512253107,-436.880734,0.00015954,2]
[419927192,1775512253116,-766.93164,0.00015954,2]
[419927193,1775512253126,-261.551929,0.00015954,2]
[419927194,1775512253135,-436.880734,0.00015954,2]
[419927195,1775512253145,-766.93164,0.00015954,2]
[419927196,1775512253155,-261.551929,0.00015954,2]
[419927197,1775512253164,-436.880734,0.00015954,2]
[419927198,1775512253175,-658.929163,0.00015954,2]
[419927199,1775512253185,-151.0,0.00015954,2]
[419927200,1775512253195,-658.929163,0.00015954,2]
[419927201,1775512253204,-151.0,0.00015954,2]
[419927202,1775512253214,-658.929163,0.00015954,2]
[419927203,1775512253224,-151.0,0.00015954,2]
[419927204,1775512253234,-272.199966,0.00015954,2]
[419927205,1775512253244,-658.929163,0.00015954,2]
[419927206,1775512253254,-151.0,0.00015954,2]
[419927207,1775512253263,-272.199966,0.00015954,2]
[419927208,1775512253273,-276.32838,0.00015954,2]
[419927209,1775512253282,-151.0,0.00015954,2]
[419927210,1775512253292,-272.199966,0.00015954,2]
[419927211,1775512253302,-276.32838,0.00015954,2]
[419927212,1775512253312,-272.199966,0.00015954,2]
[419927213,1775512253321,-276.32838,0.00015954,2]
[419927214,1775512253331,-454.709479,0.00015954,2]
[419927215,1775512253340,-276.32838,0.00015954,2]
[419927216,1775512253349,-454.709479,0.00015954,2]
[419927217,1775512253359,-454.709479,0.00015954,2]
[419927218,1775512253368,-191.515392,0.00015954,2]
[419927219,1775512253378,-454.709479,0.00015954,2]
[419927220,1775512253389,-191.515392,0.00015954,2]
[419927221,1775512253399,-191.515392,0.00015954,2]
[419927222,1775512253408,-729.469798,0.00015954,2]
[419927223,1775512253418,-191.515392,0.00015954,2]
[419927224,1775512253429,-729.469798,0.00015954,2]
[419927225,1775512253439,-729.469798,0.00015954,2]
[419927226,1775512253448,-729.469798,0.00015954,2]
[419927227,1775512253458,-151.0,0.00015954,2]
[419927228,1775512253468,-151.0,0.00015954,2]
[419927229,1775512253477,-163.951386,0.00015954,2]
[419927230,1775512253487,-162.535463,0.00015954,2]
[419927231,1775512253496,-151.0,0.00015954,2]
[419927232,1775512253506,-387.488501,0.00015954,2]
[419927233,1775512253515,-163.951386,0.00015954,2]
[419927234,1775512253525,-162.535463,0.00015954,2]
[419927235,1775512253534,-151.0,0.00015954,2]
[419927236,1775512253544,-387.488501,0.00015954,2]
[419927237,1775512253554,-586.836056,0.00015954,2]
[419927238,1775512253563,-163.951386,0.00015954,2]
[419927239,1775512253573,-162.535463,0.00015954,2]
[419927240,1775512253583,-1020.38767,0.00015954,2]
[419927241,1775512253592,-387.488501,0.00015954,2]
[419927242,1775512253602,-151.0,0.00015954,2]
[419927243,1775512253611,-553.482395,0.00015954,2]
[419927244,1775512253620,-163.951386,0.00015954,2]
[419927245,1775512253630,-162.535463,0.00015954,2]
[419927246,1775512253640,-586.836056,0.00015954,2]
[419927247,1775512253649,-151.0,0.00015954,2]
[419927248,1775512253659,-1020.38767,0.00015954,2]
[419927249,1775512253668,-741.267234,0.00015954,2]
[419927250,1775512253677,-156.226732,0.00015954,2]
[419927251,1775512253687,-387.488501,0.00015954,2]
[419927252,1775512253696,-553.482395,0.00015954,2]
[419927253,1775512253706,-586.836056,0.00015954,2]
[419927254,1775512253715,-151.0,0.00015954,2]
[419927255,1775512253724,-151.0,0.00015954,2]
[419927256,1775512253734,-741.267234,0.00015954,2]
[419927257,1775512253744,-1020.38767,0.00015954,2]
[419927258,1775512253754,-553.482395,0.00015954,2]
[419927259,1775512253763,-586.836056,0.00015954,2]
[419927260,1775512253773,-741.267234,0.00015954,2]
[419927261,1775512253782,-284.430263,0.00015954,2]
[419927262,1775512253791,-1020.38767,0.00015954,2]
[419927263,1775512253800,-553.482395,0.00015954,2]
[419927264,1775512253810,-151.0,0.00015954,2]
[419927265,1775512253819,-151.0,0.00015954,2]
[419927266,1775512253829,-151.0,0.00015954,2]
[419927267,1775512253841,-741.267234,0.00015954,2]
[419927268,1775512253850,-151.0,0.00015954,2]
[419927269,1775512253859,-287.42148692,0.0001596,2]
[419927270,1775512253868,-150.0,0.0001596,2]
[419927271,1775512253877,-1000.0,0.00015969,2]
[419927272,1775512253887,-623.42048552,0.00015973,2]
[419927273,1775512253896,-500.0,0.00015973,2]
[419927274,1775512253906,-500.0,0.00015973,2]
[419927275,1775512253915,-500.0,0.00015973,2]
[419927276,1775512253925,-500.0,0.00015973,2]
[419927277,1775512253934,-500.0,0.00015973,2]
[419927278,1775512253943,-500.62896533,0.00015973,2]
[419927279,1775512253952,-500.0,0.00015973,2]
[419927280,1775512253963,-500.14142066,0.00015973,2]
[419927281,1775512253972,-500.0,0.00015973,2]
[419927282,1775512253981,-500.0,0.00015973,2]
[419927283,1775512253990,-500.0,0.00015973,2]
[419927284,1775512254000,-500.0,0.00015973,2]
[419927285,1775512254009,-500.0,0.00015973,2]
[419927286,1775512254019,-500.0,0.00015973,2]
[419927287,1775512254028,-500.0,0.00015973,2]
[419927288,1775512254038,-500.0,0.00015973,2]
[419927289,1775512254047,-500.0,0.00015973,2]
[419927290,1775512254057,-502.32819122,0.00015973,2]
[419927291,1775512254067,-500.0,0.00015973,2]
[419927292,1775512254076,-500.0,0.00015973,2]
[419927293,1775512254086,-500.51473043,0.00015973,2]
[419927294,1775512254095,-500.0,0.00015973,2]
[419927295,1775512254105,-500.2985009,0.00015973,2]
[419927296,1775512254115,-500.0,0.00015973,2]
[419927297,1775512254125,-166.5524378,0.00015973,2]
[419927298,1775512254134,-1000.0,0.00015985,2]
[419927299,1775512254144,-1000.0,0.00015989,2]
[419927300,1775512254154,-150.0,0.00015994,2]
[419927301,1775512254164,-1000.0,0.00015995,2]
[419927302,1775512254174,-151.0,0.00015996,2]
[419927303,1775512254183,-151.0,0.00015997,2]
[419927304,1775512254192,-151.0,0.00015997,2]
[419927305,1775512254202,-500.0,0.00015998,2]
[419927306,1775512254212,-500.0,0.00015998,2]
[419927307,1775512254222,-500.0,0.00015998,2]
[419927308,1775512254232,-500.0,0.00015998,2]
[419927309,1775512254243,-500.0,0.00015998,2]
[419927310,1775512254252,-500.0,0.00015998,2]
[419927311,1775512254263,-500.0,0.00015998,2]
[419927312,1775512254273,-500.0,0.00015998,2]
[419927313,1775512254283,-500.0,0.00015998,2]
[419927314,1775512254293,-500.0,0.00015998,2]
[419927315,1775512254302,-500.0,0.00015998,2]
[419927316,1775512254312,-500.0,0.00015998,2]
[419927317,1775512254321,-500.0,0.00015998,2]
[419927318,1775512254332,-500.0,0.00015998,2]
[419927319,1775512254341,-500.0,0.00015998,2]
[419927320,1775512254350,-500.0,0.00015998,2]
[419927321,1775512254360,-706.13999004,0.00015999,2]
[419927322,1775512254370,-666.0,0.00015999,2]
[419927323,1775512254380,-666.0,0.00015999,2]
[419927324,1775512254390,-500.0,0.00015999,2]
[419927325,1775512254400,-500.0,0.00015999,2]
[419927326,1775512254410,-500.0,0.00015999,2]
[419927327,1775512254419,-150.0,0.00015999,2]
[419927328,1775512254429,-1084.35002387,0.00015999,5]
[419927329,1775512254438,-1084.35002387,0.00015999,5]
[419927330,1775512254448,-1084.35002387,0.00015999,5]
[419927331,1775512254458,-1084.35002387,0.00015999,5]
[419927332,1775512254468,-1084.35002387,0.00015999,5]
[419927333,1775512254478,-1084.35002387,0.00015999,5]
[419927334,1775512254487,-1084.35002383,0.00015999,5]
[419927335,1775512254497,-620.46209973,0.00015999,2]
[419927336,1775512254506,-500.0,0.00015999,2]
[419927337,1775512254516,-163.75,0.00015999,2]
[419927338,1775512254525,-500.0,0.00015999,2]
[419927339,1775512254535,-500.0,0.00015999,2]
[419927340,1775512254545,-500.0,0.00015999,2]
[419927341,1775512254555,-500.0,0.00015999,2]
[419927342,1775512254564,-500.0,0.00015999,2]
[419927343,1775512254574,-500.0,0.00015999,2]
[419927344,1775512254584,-500.0,0.00015999,2]
[419927345,1775512254593,-500.0,0.00015999,2]
[419927346,1775512254603,-500.0,0.00015999,2]
[419927347,1775512254613,-500.0,0.00015999,2]
[419927348,1775512254623,-520.24272845,0.00015999,2]
[419927349,1775512254632,-500.0,0.00015999,2]
[419927350,1775512254642,-500.0,0.00015999,2]
[419927351,1775512254651,-500.0,0.00015999,2]
[419927352,1775512254661,-500.0,0.00015999,2]
[419927353,1775512254671,-500.0,0.00015999,2]
[419927354,1775512254680,-566.37,0.00015999,2]
[419927355,1775512254689,-500.0,0.00015999,2]
[419927356,1775512254699,-500.0,0.00015999,2]
[419927357,1775512254708,-228.92,0.00015999,2]
[419927358,1775512254717,-500.0,0.00015999,2]
[419927359,1775512254727,-496.6511046,0.00015999,2]
[419927360,1775512254736,-150.0,0.00015999,2]
[419927361,1775512254746,-150.0,0.00015999,2]
[419927362,1775512254756,-150.0,0.00015999,2]
[419927363,1775512254765,-150.0,0.00015999,2]
[419927364,1775512254774,-150.0,0.00015999,2]
[419927365,1775512254783,-150.0,0.00015999,2]
[419927366,1775512254793,-150.0,0.00015999,2]
[419927367,1775512254802,-150.0,0.00015999,2]
[419927368,1775512254937,-150.0,0.00015999,2]
[419927369,1775512254946,-150.0,0.00015999,2]
[419927370,1775512254955,-205.95195993,0.00015999,2]
[419927371,1775512254965,-3044.0,0.00016,5]
[419927372,1775512254974,-1625941.16783591,0.00016,2]
[419927373,1775512254982,-521143.43603301,0.00016,2]
[419927374,1775512256160,-259215.62052144,0.00016,2]
[419927375,1775512256171,-417.65293,0.00016,2]
[419927376,1775512256190,-151.0,0.00015954,2]
[419927377,1775512256199,-5948.19392088,0.00016,2]
[419927378,1775512256217,-1162.45639204,0.00016,2]
[419927379,1775512256228,-324.47508148,0.00016,2]
[419927380,1775512256239,-1646.79681166,0.00016,2]
[419927381,1775512256250,-3956.95560715,0.00016,2]
[419927382,1775512256262,-310.89890368,0.00016,2]
[419927383,1775512256277,-997.91895596,0.00016,2]
[419927384,1775512256289,-3864.78770353,0.00016,2]
[419927385,1775512256741,-1346.62210364,0.00010248,2]
[419927386,1775512256751,-151.0,0.00015271,2]
[419927387,1775512256760,-212.38397,0.00015271,2]
[419927388,1775512256770,-198.225064,0.00015271,2]
[419927389,1775512256779,-611.23,0.00015471,2]
[419927390,1775512256788,-151.0,0.00015954,2]
[419927391,1775512256799,-3678921.76644719,0.00016,2]
[419927392,1775512257390,-603.0,0.00015091,2]
[419927393,1775512257402,-979.16666667,0.00015091,2]
[419927394,1775512257475,-1865.97488013,0.00015091,2]
[419927395,1775512257484,-198.225064,0.00015271,2]
[419927396,1775512257493,-198.225064,0.00015954,2]
[419927397,1775512257502,-198.225064,0.00015954,2]
[419927398,1775512257511,-8339.34992787,0.00016,2]
[419927399,1775512257541,-114047.86556666,0.00016,2]
[419927400,1775512257556,-275.0,0.00016,2]
[419927401,1775512257567,-937.70955075,0.00016,2]
[419927402,1775512257730,-190.32065933,0.00010348,2]
[419927403,1775512257740,-160.0,0.00011591,2]
[419927404,1775512257749,-411.69934067,0.00011591,2]
[419927405,1775512258111,-221.13971133,0.00011591,2]
[419927406,1775512258120,-1105.678104,0.00011591,2]
[419927407,1775512258130,-196.402077,0.00015271,2]
[419927408,1775512258139,-198.225064,0.00015271,2]
[419927409,1775512258149,-198.225064,0.00015954,2]
[419927410,1775512258158,-46824.69481338,0.00016,2]
[419927411,1775512258170,-1349.7868,0.00016,2]
[419927412,1775512258187,-862.962343,0.00012171,2]
[419927413,1775512258197,-55349.18726653,0.00016,2]
[419927414,1775512363514,1400.0,9.9e-05,3]
[419927415,1775512364168,2800.0,0.0001,3]
[419927421,1775512936123,184.31,9.486e-05,3]
[419927428,1775513147124,-1058.34973671,8.572e-05,2]
[419927429,1775513230076,-57.65026329,8.572e-05,2]
[419927430,1775513230097,-187.92378697,8.576e-05,2]
[419927431,1775513236660,1300.0,9.6e-05,3]
[419927432,1775513239864,2700.0,9.7e-05,3]
[419927433,1775513240900,4100.0,9.8e-05,3]
[419927434,1775513243507,5500.0,9.9e-05,3]
[419927435,1775513245063,6900.0,0.0001,3]
[419927436,1775513266216,162.0,0.00016,120]
[419927438,1775513345920,-62.07621303,8.576e-05,2]
[419927439,1775513345940,-1116.0,8.58e-05,2]
[419927440,1775513345962,-1600.0,8.865e-05,2]
[419927441,1775513345983,-250.0,8.915e-05,2]
[419927442,1775513346003,-1116.0,9.031e-05,2]
[419927443,1775513346023,-172.0,9.196e-05,2]
[419927444,1775513346045,-300.0,9.196e-05,2]
[419927445,1775513346066,-150.0,9.197e-05,2]
[419927446,1775513346087,-150.0,9.197e-05,2]
[419927447,1775513346108,-30.49671897,9.197e-05,2]
[419927448,1775513352086,-119.50328103,9.197e-05,2]
[419927449,1775513352108,-151.17477808,9.197e-05,2]
[419927450,1775513352129,-150.0,9.197e-05,2]
[419927451,1775513352783,-150.0,9.197e-05,2]
[419927452,1775513352818,-150.0,9.197e-05,2]
[419927453,1775513352841,-150.0,9.197e-05,2]
[419927454,1775513352863,-150.0,9.197e-05,2]
[419927455,1775513352883,-150.0,9.325e-05,2]
[419927456,1775513352904,-2688.82,9.382e-05,2]
[419927457,1775513352925,-150.0,9.402e-05,2]
[419927458,1775513352945,-150.0,9.402e-05,2]
[419927459,1775513352967,-1200.0,9.428e-05,2]
[419927460,1775513352986,-5000.0,9.429e-05,2]
[419927461,1775513353008,-250.0,9.429e-05,2]
[419927462,1775513353030,-150.0,9.453e-05,2]
[419927463,1775513353051,-150.0,9.453e-05,2]
[419927464,1775513353073,-150.0,9.453e-05,2]
[419927465,1775513353094,-150.0,9.453e-05,2]
[419927466,1775513353116,-1116.0,9.507e-05,2]
[419927467,1775513353138,-150.0,9.58e-05,2]
[419927468,1775513353161,-150.0,9.606e-05,2]
[419927469,1775513353183,-150.0,9.606e-05,2]
[419927470,1775513353204,-985.13,9.612e-05,2]
[419927471,1775513353226,-150.0,9.708e-05,2]
[419927472,1775513353248,-150.0,9.708e-05,2]
[419927473,1775513353269,-150.0,9.708e-05,2]
[419927474,1775513353291,-150.0,9.708e-05,2]
[419927475,1775513353313,-150.0,9.708e-05,2]
[419927476,1775513353336,-150.0,9.81e-05,2]
[419927477,1775513353359,-150.0,9.81e-05,2]
[419927478,1775513353381,-150.0,9.836e-05,2]
[419927479,1775513353402,-1351.02,9.892e-05,2]
[419927480,1775513353425,-150.0,9.964e-05,2]
[419927481,1775513353447,-150.0,9.964e-05,2]
[419927482,1775513353470,-150.0,9.964e-05,2]
[419927483,1775513353493,-150.0,9.964e-05,2]
[419927484,1775513353517,-1600.0,9.974e-05,2]
[419927485,1775513353540,-1116.0,0.00010007,2]
[419927486,1775513353561,-150.0,0.00010013,2]
[419927487,1775513353583,-150.99,0.00010014,2]
[419927488,1775513353617,-150.99,0.00010014,2]
[419927489,1775513353639,-8233.93872514,0.00010014,2]
[419927492,1775513379430,461.39,9.343e-05,2]
[419927494,1775513388090,17.1418714,9.318e-05,2]
[419927499,1775513431584,-300.0,9.317e-05,2]
[419927500,1775513431594,-106.80539071,9.317e-05,2]
[419927501,1775513431694,-1093.19460929,9.317e-05,2]
[419927502,1775513431704,-193.0,9.318e-05,2]
[419927503,1775513431714,-250.0,9.318e-05,2]
[419927504,1775513431724,-13657.95824266,9.318e-05,2]
[419927505,1775513431736,-1206.72060609,9.318e-05,2]
[419927506,1775513431747,-1037.75340511,9.318e-05,2]
[419927509,1775513431759,-781.51955281,9.318e-05,2]
[419927511,1775513431771,-501.52740981,9.318e-05,2]
[419927515,1775513437660,-1037.77,9.318e-05,2]
[419927516,1775513437672,-2275.98803234,9.318e-05,2]
[419927517,1775513437684,-14619.42564278,9.318e-05,2]
[419927518,1775513437716,-623.28211684,9.318e-05,2]
[419927519,1775513437727,-367.20807815,9.318e-05,2]
[419927520,1775513437825,-2041.44350403,9.318e-05,2]
[419927521,1775513437837,-165613.67153798,9.318e-05,2]
[419927522,1775513437847,-202.7942291,9.733e-05,2]
[419927523,1775513437857,-323.28480151,9.733e-05,2]
[419927524,1775513437867,-490.0,0.0001,2]
[419927525,1775513437876,-1766.05127486,0.00010014,2]
[419927526,1775513437886,-999.99,0.00010014,2]
[419927527,1775513437896,-3862.51,0.00010014,2]
[419927528,1775513437906,-299.99,0.00010014,2]